bitfinex-derivatives/quotes_ETHF0:USTF0_20250704
["timestamp","ask_amount","ask_price","bid_price","bid_amount"]
[1751637133414,1.3432,2527.6,2527.5,0.79102]
[1751637133620,3.9127,2527.9,2527.3,1.97772]
[1751637133830,3.9127,2527.9,2527.8,0.79093]
[1751637134026,0.7049,2527.9,2527.8,0.79093]
[1751637134732,1.3432,2528.1,2528.0,0.79086]
[1751637135130,3.2078,2528.2,2527.7,1.97735]
[1751637135131,3.2078,2528.2,2528.1,0.79083]
[1751637135325,3.2078,2528.5,2528.3,0.79076]
[1751637135529,3.2078,2528.5,2528.4,0.79074]
[1751637135723,4.5379,2528.5,2528.1,0.79083]
[1751637135928,4.5379,2528.5,2528.4,0.79074]
[1751637136132,4.5379,2528.5,2528.3,0.79075]
[1751637136326,4.5379,2528.5,2528.3,0.79076]
[1751637136526,4.5379,2528.5,2527.9,3.2078]
[1751637136735,4.5379,2528.5,2528.3,0.79077]
[1751637136935,12.881261,2528.5,2528.3,0.79077]
[1751637137130,0.79074,2528.4,2528.0,0.79086]
[1751637137333,1.3301,2528.3,2528.1,0.79081]
[1751637137536,1.3301,2528.3,2528.0,0.79084]
[1751637138031,3.2078,2528.2,2528.1,0.79083]
[1751637138431,1.3301,2528.3,2528.2,0.7908]
[1751637138832,8.343361,2528.5,2527.9,3.2078]
[1751637139033,8.343361,2528.5,2528.3,0.79075]
[1751637139233,8.343361,2528.5,2528.0,3.35667]
[1751637139234,10.538681,2528.5,2528.2,0.79078]
[1751637139537,10.538681,2528.5,2528.1,0.79081]
[1751637139831,10.538681,2528.5,2528.2,0.7908]
[1751637140339,0.79075,2528.4,2528.2,0.7908]
[1751637140531,0.79075,2528.4,2528.1,0.79081]
[1751637140732,0.79075,2528.4,2528.2,0.7908]
[1751637140733,2.19535,2528.4,2528.2,0.7908]
[1751637140928,0.79078,2528.3,2528.1,0.79082]
[1751637141127,2.19536,2528.4,2528.1,0.79082]
[1751637141434,2.19536,2528.4,2528.2,0.7908]
[1751637141633,3.2078,2528.3,2527.7,0.6891]
[1751637141835,2.13653,2528.2,2528.0,0.79086]
[1751637142035,3.2078,2528.3,2527.6,3.2078]
[1751637142237,8.343361,2528.5,2528.4,0.79074]
[1751637143938,8.343361,2528.5,2528.0,1.4103]
[1751637144140,10.519271,2528.5,2528.3,0.79075]
[1751637144333,10.519271,2528.5,2528.2,0.79078]
[1751637144534,10.519271,2528.5,2527.9,5.18503]
[1751637144535,0.79075,2528.4,2527.9,3.2078]
[1751637144742,2.17595,2528.4,2528.2,0.79078]
[1751637145037,1.3852,2528.4,2528.3,0.79077]
[1751637145236,1.3852,2528.4,2528.0,1.3911]
[1751637145441,3.99857,2528.3,2528.1,0.79081]
[1751637145734,3.2078,2528.3,2528.2,0.7908]
[1751637146038,3.9127,2528.6,2528.5,0.79071]
[1751637147439,11.551161,2528.6,2528.5,0.79071]
[1751637147838,8.343361,2528.6,2528.5,0.79071]
[1751637149137,3.2078,2530.8,2528.8,3.95306]
[1751637149338,2.0514,2530.7,2529.5,3.2078]
[1751637149641,3.2078,2530.2,2529.5,0.663]
[1751637149841,3.2078,2529.9,2529.5,2.63895]
[1751637150029,3.2078,2530.5,2530.0,0.79024]
[1751637150235,3.2078,2530.5,2530.4,0.79011]
[1751637150546,3.2078,2530.5,2529.9,1.97564]
[1751637150835,1.4047,2530.4,2530.3,0.79014]
[1751637151029,1.4047,2530.4,2530.2,0.79016]
[1751637151235,1.4047,2530.4,2529.7,5.18358]
[1751637151434,1.4047,2530.4,2529.8,1.97569]
[1751637151630,1.4047,2530.4,2530.2,0.79016]
[1751637151835,0.79015,2530.3,2529.7,3.2078]
[1751637152042,1.4047,2530.2,2529.7,3.2078]
[1751637152341,1.4047,2530.2,2530.0,0.79023]
[1751637152541,1.4047,2530.2,2529.7,3.2078]
[1751637152739,1.4047,2530.2,2530.0,0.79021]
[1751637152940,1.4047,2530.2,2530.1,0.79021]
[1751637153131,3.2078,2530.5,2529.8,1.97576]
[1751637153336,3.2078,2530.5,2529.8,1.417]
[1751637153337,0.79014,2530.4,2529.8,1.417]
[1751637153638,0.79016,2530.3,2530.2,0.79018]
[1751637153840,0.79016,2530.3,2530.1,0.79019]
[1751637154042,1.3216,2530.2,2530.1,0.79019]
[1751637154234,0.79017,2530.3,2530.1,0.79019]
[1751637154635,0.79021,2530.1,2530.0,3.2078]
[1751637154934,1.97524,2530.5,2529.7,3.2078]
[1751637155139,5.18314,2530.4,2529.7,3.2078]
[1751637155336,0.79027,2529.9,2529.7,3.99811]
[1751637155643,0.79026,2530.0,2529.8,0.7903]
[1751637155943,0.79027,2529.9,2529.8,0.7903]
[1751637157441,0.79026,2530.0,2529.9,0.79026]
[1751637158044,0.6599,2530.2,2530.1,0.79021]
[1751637158244,0.79011,2530.5,2530.4,0.79011]
[1751637158646,0.7901,2530.5,2530.4,0.7901]
[1751637159043,3.2078,2530.7,2530.1,1.97552]
[1751637159344,57.5959,2530.8,2530.5,0.79005]
[1751637159547,0.79005,2530.6,2530.5,0.79005]
[1751637160048,0.6599,2530.8,2530.3,3.8522]
[1751637160247,3.2078,2531.6,2530.7,3.2078]
[1751637160446,0.78998,2530.9,2530.7,3.2078]
[1751637160850,0.78995,2531.0,2530.7,3.99782]
[1751637161048,0.78995,2531.0,2530.8,0.78997]
[1751637161345,0.78994,2531.0,2530.7,3.2078]
[1751637161849,0.78992,2531.1,2530.9,0.78995]
[1751637162149,0.78994,2531.0,2530.9,0.78996]
[1751637162448,0.78994,2531.0,2530.8,0.78997]
[1751637163151,15.1598,2531.3,2530.7,3.2078]
[1751637163346,0.79001,2530.8,2530.7,3.2078]
[1751637163744,0.78998,2530.9,2530.7,3.99782]
[1751637163940,3.39637,2531.2,2530.7,3.99782]
[1751637163941,1.4217,2531.2,2530.7,3.2078]
[1751637164250,0.78987,2531.2,2531.0,3.9977]
[1751637164652,0.78987,2531.2,2531.1,0.78989]
[1751637165442,0.78989,2531.2,2531.0,3.99771]
[1751637165951,0.78984,2531.3,2531.2,0.78986]
[1751637166249,0.78983,2531.3,2531.2,0.78985]
[1751637166447,0.78986,2531.2,2531.1,2.75177]
[1751637166641,0.78985,2531.3,2531.2,0.78986]
[1751637166844,0.78986,2531.2,2531.1,2.75178]
[1751637167044,0.78984,2531.3,2531.2,0.78984]
[1751637167548,0.649,2531.6,2531.1,0.6781]
[1751637167749,0.78986,2531.2,2531.1,1.46797]
[1751637168051,0.78986,2531.2,2531.1,0.6781]
[1751637168652,0.78986,2531.2,2531.1,1.468]
[1751637168842,0.78986,2531.2,2531.1,0.6781]
[1751637169249,0.7899,2531.1,2530.7,4.4916]
[1751637169450,0.7899,2531.1,2531.0,0.78993]
[1751637169850,1.97451,2531.4,2531.1,0.78987]
[1751637169851,0.78989,2531.2,2531.1,0.78987]
[1751637170147,2.0192,2531.6,2530.8,1.97498]
[1751637170351,0.78985,2531.3,2531.2,0.78984]
[1751637170556,0.78989,2531.2,2531.1,0.78987]
[1751637171352,0.7899,2531.1,2531.0,3.2078]
[1751637171749,0.78993,2531.0,2530.9,0.78995]
[1751637172055,0.78999,2530.8,2530.7,3.9154]
[1751637172251,3.2078,2531.4,2530.8,0.78994]
[1751637172252,0.78998,2530.9,2530.8,0.78994]
[1751637173149,0.78995,2531.0,2530.9,0.78992]
[1751637174454,0.78999,2530.9,2530.8,0.78997]
[1751637174950,3.30062,2531.3,2530.7,3.9154]
[1751637175152,0.78999,2530.8,2530.7,4.70539]
[1751637175356,0.78998,2530.9,2530.8,0.78995]
[1751637175549,1.9747,2531.2,2530.9,0.78992]
[1751637175550,0.78995,2531.0,2530.9,0.78992]
[1751637176158,0.78995,2531.0,2530.9,0.78996]
[1751637176349,0.78999,2530.8,2530.7,4.7054]
[1751637176555,1.97477,2531.1,2530.8,0.78996]
[1751637176556,0.78999,2530.9,2530.8,0.78996]
[1751637177260,15.24764,2531.3,2530.9,0.78992]
[1751637177261,0.78995,2531.0,2530.9,0.78992]
[1751637177460,0.78995,2531.0,2530.7,5.89044]
[1751637177461,0.78992,2531.1,2531.0,0.78988]
[1751637180258,15.1548,2531.4,2530.8,1.3517]
[1751637180451,1.43876,2531.6,2531.5,0.78977]
[1751637180755,1.11453687,2531.6,2531.5,0.78977]
[1751637180958,3.2078,2531.7,2531.6,0.78974]
[1751637181155,3.2078,2532.1,2532.0,0.78959]
[1751637181350,3.2078,2532.1,2531.7,2.0435]
[1751637181666,3.2078,2532.1,2531.7,0.6654]
[1751637181855,3.2078,2532.1,2531.8,0.78966]
[1751637182051,3.2078,2532.1,2532.0,0.78962]
[1751637182555,15.0068,2532.5,2532.4,0.78949]
[1751637182763,1.11434858,2532.5,2532.4,0.78949]
[1751637183063,3.2078,2532.9,2532.8,0.78937]
[1751637183259,1.11454906,2532.9,2532.8,0.78937]
[1751637183457,3.2078,2533.2,2533.1,0.78927]
[1751637183655,15.0068,2533.6,2533.4,0.78917]
[1751637183855,0.78922,2533.3,2533.0,3.2078]
[1751637184055,0.78923,2533.3,2533.1,2.17606]
[1751637184380,3.99693,2533.6,2533.4,0.78916]
[1751637184560,3.2078,2533.6,2533.5,0.78915]
[1751637184755,3.2078,2534.0,2533.4,3.2078]
[1751637184956,0.78898,2534.1,2533.9,3.2078]
[1751637185162,0.78898,2534.1,2533.9,5.38362]
[1751637185462,0.78899,2534.0,2533.9,4.5946]
[1751637185762,0.78899,2534.0,2533.9,3.2078]
[1751637185960,0.78911,2533.7,2533.4,0.78916]
[1751637186160,0.78915,2533.5,2533.4,1.3868]
[1751637186352,3.2078,2533.9,2533.4,1.3868]
[1751637186751,3.2078,2534.3,2533.8,0.78904]
[1751637186953,0.78899,2534.1,2533.9,5.39682]
[1751637187161,0.78899,2534.1,2533.9,4.6078]
[1751637187360,3.2078,2534.3,2533.9,4.6078]
[1751637187859,0.78897,2534.1,2533.9,5.39681]
[1751637188154,0.78895,2534.2,2533.9,5.39681]
[1751637188360,3.2078,2534.6,2534.1,0.78893]
[1751637188656,3.2078,2534.6,2534.2,1.4]
[1751637188863,0.7889,2534.3,2534.2,1.4]
[1751637189057,0.78889,2534.4,2534.2,1.4]
[1751637189261,0.78882,2534.6,2534.3,3.9967]
[1751637189460,1.3197,2534.9,2534.3,3.2078]
[1751637189757,56.894,2535.2,2534.6,3.2078]
[1751637189956,0.78874,2534.9,2534.7,1.3245]
[1751637190156,0.78877,2534.7,2534.6,3.2078]
[1751637190558,0.7888,2534.7,2534.5,3.2078]
[1751637190863,3.2078,2535.3,2535.0,0.78868]
[1751637191063,3.2078,2535.3,2534.9,3.2078]
[1751637191361,3.2078,2535.3,2535.0,1.3245]
[1751637191751,3.2078,2535.3,2535.0,2.0188]
[1751637191962,0.78865,2535.1,2535.0,2.0188]
[1751637192158,3.2078,2535.3,2534.6,3.2078]
[1751637192361,3.2078,2535.3,2534.9,3.2078]
[1751637192562,3.2078,2535.3,2534.7,1.97194]
[1751637192563,1.97155,2535.2,2534.7,1.378]
[1751637192759,0.78873,2534.9,2534.8,0.78874]
[1751637192959,0.78862,2535.2,2535.0,0.78868]
[1751637193169,0.78868,2535.1,2534.8,3.2078]
[1751637193363,3.2078,2535.3,2535.1,0.78862]
[1751637193659,0.78854,2535.5,2535.1,3.2078]
[1751637193863,3.2078,2535.9,2535.0,0.78866]
[1751637194061,0.78857,2535.4,2534.9,3.2078]
[1751637194360,3.28683,2535.8,2534.9,3.2078]
[1751637194361,1.97132,2535.5,2534.9,3.2078]
[1751637194664,1.3157,2535.4,2535.0,0.78866]
[1751637194965,1.3157,2535.4,2534.9,3.2078]
[1751637194966,0.78863,2535.2,2535.1,0.78864]
[1751637195169,0.78864,2535.2,2535.0,0.78866]
[1751637195361,3.2078,2535.6,2535.2,0.78861]
[1751637195561,0.78858,2535.4,2535.3,0.78858]
[1751637195757,3.2078,2535.6,2535.1,1.97159]
[1751637196062,5.17933,2535.3,2534.5,0.6588]
[1751637196259,1.97185,2534.9,2534.5,2.006]
[1751637196463,1.343,2535.2,2534.5,2.006]
[1751637196662,0.78869,2535.0,2534.6,3.2078]
[1751637196869,3.2078,2535.3,2534.2,3.2078]
[1751637197070,0.78878,2534.7,2534.5,0.78881]
[1751637197264,0.78881,2534.6,2534.5,0.78883]
[1751637197571,0.7888,2534.7,2534.6,0.7888]
[1751637197756,0.7888,2534.7,2534.2,5.1801]
[1751637197757,3.2078,2534.7,2534.2,3.2078]
[1751637197962,0.78884,2534.5,2534.2,3.2078]
[1751637198167,1.343,2534.6,2534.2,3.2078]
[1751637198470,0.78886,2534.5,2534.4,0.78885]
[1751637198767,3.2078,2534.7,2534.6,0.78881]
[1751637198969,3.99657,2534.7,2534.6,0.78881]
[1751637199163,3.99657,2534.7,2534.3,1.405]
[1751637199164,11.785,2534.9,2534.3,3.37723]
[1751637199466,0.6635,2535.4,2534.8,3.2078]
[1751637199668,0.6635,2535.4,2534.9,1.405]
[1751637199864,0.6635,2535.4,2535.0,0.78867]
[1751637200167,1.45207,2535.4,2535.0,0.78867]
[1751637200369,0.6635,2535.4,2534.9,1.405]
[1751637200666,0.78886,2534.5,2534.3,0.78889]
[1751637200866,0.78872,2534.9,2534.7,0.78876]
[1751637201061,13.1314,2535.3,2534.6,3.2078]
[1751637201263,3.2078,2535.5,2534.9,3.2078]
[1751637201464,3.2078,2535.5,2535.0,1.405]
[1751637201770,3.2078,2535.5,2535.0,4.01809]
[1751637202063,3.2078,2535.5,2535.4,0.78856]
[1751637202259,3.2078,2535.5,2535.3,0.78857]
[1751637202260,0.78853,2535.5,2535.3,0.78857]
[1751637202463,0.78856,2535.4,2535.3,1.3574]
[1751637202659,0.78856,2535.4,2535.3,2.14599]
[1751637203058,1.97121,2535.7,2535.0,1.43006]
[1751637203264,0.78865,2535.1,2535.0,0.6414]
[1751637203465,0.78868,2535.0,2534.9,3.2078]
[1751637203667,0.78877,2534.7,2534.6,3.2078]
[1751637203968,0.78884,2534.5,2534.4,0.78884]
[1751637204267,1.97184,2534.9,2534.4,0.78884]
[1751637204462,0.78886,2534.5,2534.3,2.14628]
[1751637204662,0.78886,2534.5,2534.4,0.78887]
[1751637204868,0.78887,2534.4,2534.3,1.3574]
[1751637205168,0.7889,2534.3,2534.2,4.63811]
[1751637205764,0.7889,2534.4,2534.3,0.78888]
[1751637205963,3.36514,2534.9,2534.4,0.78885]
[1751637205964,0.78885,2534.5,2534.4,0.78885]
[1751637206271,0.78882,2534.6,2534.5,0.78884]
[1751637206472,3.2078,2535.0,2534.5,3.2078]
[1751637206763,0.7887,2535.0,2534.9,0.78871]
[1751637207363,0.78876,2534.8,2534.7,0.78876]
[1751637207963,0.78868,2535.0,2534.9,0.7887]
[1751637208163,3.99647,2535.1,2535.0,0.78868]
[1751637208366,3.2078,2535.1,2535.0,0.78868]
[1751637208571,11.783,2535.4,2535.0,3.2078]
[1751637208769,0.78861,2535.3,2535.2,0.78861]
[1751637208968,0.78861,2535.3,2535.0,3.2078]
[1751637208969,0.78856,2535.5,2535.1,1.97163]
[1751637209171,3.2078,2535.6,2535.2,0.78859]
[1751637209172,0.78861,2535.3,2535.2,0.78859]
[1751637209766,1.97143,2535.4,2534.6,5.1798]
[1751637209965,0.78864,2535.2,2535.1,0.78863]
[1751637210169,6.46396,2535.6,2534.9,3.2078]
[1751637210170,0.78858,2535.4,2535.0,1.97171]
[1751637210370,0.78854,2535.5,2535.4,0.78853]
[1751637210870,3.9963,2535.6,2535.5,0.78853]
[1751637211068,3.2078,2535.6,2535.5,0.78853]
[1751637211467,41.4567,2535.8,2535.7,0.78846]
[1751637211666,0.6567,2535.8,2535.7,0.78846]
[1751637212172,5.0,2535.8,2535.0,3.2078]
[1751637212467,0.78856,2535.4,2535.3,0.78857]
[1751637212866,0.78863,2535.2,2535.1,0.78862]
[1751637213066,0.78861,2535.3,2535.2,0.78862]
[1751637213468,0.78858,2535.4,2535.3,0.78855]
[1751637213767,3.2078,2535.6,2535.5,0.78853]
[1751637213971,0.78849,2535.7,2535.6,0.78847]
[1751637214172,1.48486,2535.8,2535.7,0.78846]
[1751637214671,0.6964,2535.8,2535.4,1.97138]
[1751637214871,0.6964,2535.8,2535.7,0.78846]
[1751637215275,1.48485,2535.8,2535.7,0.78846]
[1751637215571,1.48485,2535.8,2535.4,1.3739]
[1751637215572,0.6964,2535.8,2535.4,1.3739]
[1751637215870,0.78852,2535.6,2535.5,0.78849]
[1751637216070,0.78849,2535.7,2535.6,0.78848]
[1751637217176,1.48486,2535.8,2535.7,0.78846]
[1751637217373,0.7885,2535.7,2535.6,0.78847]
[1751637217778,0.78857,2535.4,2535.3,0.78855]
[1751637217979,0.78854,2535.5,2535.4,0.78853]
[1751637218274,0.7886,2535.3,2535.2,0.7886]
[1751637218477,6.56948,2535.6,2535.0,5.1795]
[1751637218672,0.78865,2535.2,2535.1,0.78863]
[1751637219378,0.78865,2535.1,2535.0,0.78868]
[1751637219574,0.78864,2535.2,2535.1,0.78861]
[1751637219979,0.78861,2535.3,2535.2,0.78859]
[1751637220478,0.78865,2535.2,2535.1,0.78863]
[1751637221680,1.9715,2535.3,2534.7,5.87649]
[1751637221880,0.78862,2535.3,2535.2,0.78859]
[1751637222181,0.78867,2535.2,2535.1,0.78863]
[1751637223576,0.78865,2535.1,2535.0,3.99645]
[1751637223777,0.78865,2535.1,2535.0,3.2078]
[1751637224074,0.78865,2535.1,2534.8,1.4024]
[1751637224075,0.78874,2534.9,2534.8,0.78871]
[1751637224276,0.78874,2534.8,2534.7,3.9046]
[1751637224477,0.78874,2534.8,2534.7,0.6968]
[1751637224677,0.78884,2534.5,2534.4,3.2078]
[1751637224873,0.78881,2534.7,2534.6,0.78878]
[1751637225088,0.78884,2534.5,2534.4,3.99663]
[1751637225481,0.78884,2534.5,2534.4,3.2078]
[1751637225878,0.78884,2534.5,2534.2,0.6743]
[1751637225879,0.7889,2534.3,2534.2,0.6743]
[1751637226074,0.78902,2533.9,2533.8,3.8701]
[1751637226276,0.78902,2533.9,2533.8,3.2078]
[1751637226478,1.97238,2534.2,2533.4,2.0544]
[1751637226479,0.78913,2533.6,2533.5,0.78913]
[1751637226685,3.2078,2534.0,2533.4,5.2622]
[1751637226884,0.7891,2533.7,2533.6,0.7891]
[1751637227185,0.78915,2533.5,2533.4,4.70207]
[1751637227481,3.2078,2533.7,2532.4,7.14175402]
[1751637227685,3.2078,2533.3,2532.4,7.14175402]
[1751637227981,3.2078,2533.3,2532.7,3.2078]
[1751637228178,0.78933,2532.9,2532.8,4.5571]
[1751637228482,3.2078,2533.3,2532.2,0.7051]
[1751637228483,3.2078,2533.3,2532.5,3.2078]
[1751637228783,1.97319,2533.1,2532.5,3.2078]
[1751637228982,0.78943,2532.6,2532.5,3.2078]
[1751637229286,15.0048,2532.7,2532.0,0.7896]
[1751637229674,0.78963,2532.0,2531.8,0.78967]
[1751637229878,0.78965,2531.9,2531.8,1.4089]
[1751637230380,0.78964,2532.0,2531.8,2.19858]
[1751637230574,0.7896,2532.1,2531.9,0.78965]
[1751637230783,0.78964,2532.0,2531.8,2.19857]
[1751637230983,0.78964,2532.0,2531.8,1.4089]
[1751637231179,1.4196,2532.3,2531.8,1.4089]
[1751637231384,0.78963,2532.0,2531.8,2.19856]
[1751637231589,1.4196,2532.3,2531.8,1.4089]
[1751637231783,0.78956,2532.2,2531.8,1.4089]
[1751637231983,71.8198,2532.9,2532.1,3.2078]
[1751637232185,0.78936,2532.8,2532.2,1.364]
[1751637232386,60.0198,2532.9,2532.3,1.9738]
[1751637232577,0.78942,2532.7,2532.2,1.364]
[1751637232777,0.78942,2532.7,2532.6,0.78942]
[1751637232977,60.0198,2532.9,2532.5,0.78944]
[1751637233277,60.0198,2532.9,2532.2,1.364]
[1751637233485,0.78947,2532.5,2532.2,1.364]
[1751637233685,0.78944,2532.6,2532.5,0.78945]
[1751637233886,61.4185,2532.9,2532.5,0.78945]
[1751637233887,61.4185,2532.9,2532.5,0.78943]
[1751637234188,0.78936,2532.8,2532.6,0.7894]
[1751637234488,60.0198,2532.9,2532.8,0.78936]
[1751637235289,60.0198,2532.9,2532.4,1.364]
[1751637235688,60.0198,2532.9,2532.8,0.78936]
[1751637235890,60.80913,2532.9,2532.4,1.364]
[1751637236086,60.0198,2532.9,2532.8,0.78936]
[1751637236291,57.60133,2532.9,2532.8,0.78936]
[1751637236791,56.812,2532.9,2532.7,0.78938]
[1751637236993,0.78937,2532.8,2532.6,2.20691]
[1751637237391,0.78937,2532.8,2532.7,0.7894]
[1751637237591,57.60135,2532.9,2532.7,0.7894]
[1751637237787,57.60135,2532.9,2532.6,1.4175]
[1751637237994,0.78937,2532.8,2532.7,0.7894]
[1751637238193,56.812,2532.9,2532.8,0.78937]
[1751637238389,57.60134,2532.9,2532.7,0.78937]
[1751637238786,57.60134,2532.9,2532.8,0.78937]
[1751637238983,56.812,2532.9,2532.8,0.78937]
[1751637239391,56.812,2532.9,2532.7,0.78938]
[1751637239695,56.812,2532.9,2532.6,0.7894]
[1751637239895,0.78943,2532.6,2532.5,1.45095]
[1751637240090,0.78943,2532.6,2532.5,1.45096]
[1751637240287,0.78938,2532.8,2532.7,0.78937]
[1751637240689,0.78943,2532.6,2532.5,0.6615]
[1751637240985,0.78943,2532.6,2532.3,1.3009]
[1751637240986,0.78952,2532.4,2532.3,0.78951]
[1751637241193,37.9,2532.6,2532.2,3.2078]
[1751637241394,38.68943,2532.6,2532.5,0.78946]
[1751637241891,38.68943,2532.6,2532.4,0.78948]
[1751637241892,0.78949,2532.5,2532.4,0.78948]
[1751637242889,0.78949,2532.4,2532.3,2.16651]
[1751637243086,0.78949,2532.4,2532.3,0.78953]
[1751637243387,37.9,2532.6,2531.9,3.2078]
[1751637243388,1.97368,2532.5,2531.9,3.2078]
[1751637243591,0.78962,2532.0,2531.9,3.99743]
[1751637244191,3.2078,2532.3,2532.2,0.78955]
[1751637244386,12.443,2532.6,2532.2,3.2078]
[1751637244586,0.78952,2532.4,2532.3,0.7895]
[1751637244788,0.78955,2532.3,2532.2,0.78953]
[1751637245094,0.78955,2532.2,2532.1,2.14507]
[1751637245696,0.78954,2532.3,2532.2,0.78953]
[1751637245897,37.88,2532.5,2532.1,1.3555]
[1751637246093,38.6695,2532.5,2532.4,0.78949]
[1751637246287,0.78953,2532.4,2532.3,0.7895]
[1751637246493,38.66949,2532.5,2532.4,0.78949]
[1751637246693,3.2078,2532.8,2532.6,0.78941]
[1751637246893,0.78944,2532.7,2532.6,0.78941]
[1751637247693,0.78932,2533.0,2532.9,0.7893]
[1751637247886,3.99711,2533.1,2533.0,0.7893]
[1751637248596,3.2078,2533.1,2533.0,0.7893]
[1751637248791,0.78923,2533.3,2532.9,1.97334]
[1751637248792,0.78921,2533.3,2532.9,1.97334]
[1751637249091,0.78921,2533.3,2533.2,0.78922]
[1751637249591,0.78925,2533.2,2533.0,2.07448]
[1751637249786,0.7892,2533.4,2533.2,0.78923]
[1751637249992,0.78918,2533.4,2533.3,1.2852]
[1751637250396,0.78924,2533.2,2533.1,3.2078]
[1751637250598,0.78924,2533.2,2533.1,3.99707]
[1751637250898,0.78924,2533.2,2533.1,3.2078]
[1751637251296,3.2078,2533.2,2532.6,3.2078]
[1751637251596,0.78943,2532.6,2532.5,0.6664]
[1751637252398,0.78952,2532.3,2532.2,1.44493]
[1751637252591,1.97356,2532.7,2531.9,5.3084]
[1751637252592,0.78957,2532.2,2531.9,5.3084]
[1751637252796,0.78957,2532.2,2532.1,0.78956]
[1751637252993,0.78961,2532.1,2531.9,5.3084]
[1751637253192,0.78956,2532.2,2532.1,0.78955]
[1751637253395,0.78955,2532.3,2532.2,0.78954]
[1751637253896,3.2078,2532.6,2531.9,5.3084]
[1751637254193,0.78958,2532.2,2532.1,0.78957]
[1751637254497,0.78953,2532.3,2532.2,0.78952]
[1751637255093,0.78956,2532.2,2532.1,0.78956]
[1751637255287,6.491,2532.6,2532.2,0.78955]
[1751637255288,0.78955,2532.3,2532.2,0.78955]
[1751637255490,3.2078,2532.6,2532.3,0.7895]
[1751637255787,0.78955,2532.3,2532.2,0.78954]
[1751637255993,0.78954,2532.3,2532.2,0.78953]
[1751637256193,5.18145,2532.6,2531.9,5.3084]
[1751637256394,0.78954,2532.3,2532.2,0.78952]
[1751637257198,0.78955,2532.3,2532.2,0.78954]
[1751637257398,0.78952,2532.4,2532.3,0.78951]
[1751637257602,1.97366,2532.5,2531.9,5.3084]
[1751637257794,0.7896,2532.1,2532.0,0.78959]
[1751637257996,0.7896,2532.1,2532.0,2.17519]
[1751637258194,0.7896,2532.1,2532.0,1.3856]
[1751637258899,0.7896,2532.1,2532.0,2.17522]
[1751637259497,0.7896,2532.1,2532.0,1.3856]
[1751637259804,0.78974,2531.7,2531.6,0.78971]
[1751637259997,0.78974,2531.7,2531.6,1.47461]
[1751637260197,0.78974,2531.7,2531.6,2.81951]
[1751637261302,1.9741,2532.0,2531.7,0.78967]
[1751637261303,0.7897,2531.8,2531.7,0.78967]
[1751637261801,0.78971,2531.7,2531.6,0.6849]
[1751637261996,0.78971,2531.7,2531.3,0.7039]
[1751637261997,0.7898,2531.4,2531.3,0.7039]
[1751637262199,1.97444,2531.5,2531.1,2.0298]
[1751637262390,0.78987,2531.2,2531.1,2.8197]
[1751637262797,0.78987,2531.2,2531.1,2.0298]
[1751637262998,0.78993,2531.0,2530.9,3.2078]
[1751637263998,40.38579,2531.7,2531.0,1.97482]
[1751637264303,0.78991,2531.1,2531.0,0.78991]
[1751637264504,1.97462,2531.3,2530.7,1.3119]
[1751637264804,0.78997,2530.9,2530.8,0.78996]
[1751637264999,0.78995,2531.0,2530.9,0.78994]
[1751637265201,3.2078,2531.5,2530.8,3.2078]
[1751637265504,0.78981,2531.4,2531.3,0.7898]
[1751637265698,0.6685,2531.7,2531.1,5.18251]
[1751637265699,0.78978,2531.5,2531.1,5.18251]
[1751637266003,0.78977,2531.6,2531.5,0.78976]
[1751637266403,0.78971,2531.7,2531.6,0.78972]
[1751637266597,15.7495,2531.8,2531.7,0.78971]
[1751637266793,3.2078,2531.8,2531.7,0.78971]
[1751637266994,68.625,2532.0,2531.8,0.78968]
[1751637267295,0.78968,2531.9,2531.8,0.78968]
[1751637267503,69.41464,2532.0,2531.9,0.78965]
[1751637267704,69.70461248,2532.0,2531.6,1.3918]
[1751637267905,1.86927566,2531.9,2531.8,0.78965]
[1751637268305,69.41464,2532.0,2531.9,0.78965]
[1751637268502,69.70668341,2532.0,2531.3,0.6946]
[1751637268703,1.97455,2531.4,2530.9,3.2078]
[1751637269006,0.78993,2531.0,2530.9,3.99775]
[1751637269305,0.78993,2531.0,2530.9,3.2078]
[1751637269501,0.78999,2530.8,2530.7,0.79]
[1751637269708,0.79002,2530.8,2530.7,0.79001]
[1751637269897,0.79002,2530.7,2530.6,2.79453]
[1751637270096,1.97475,2531.1,2530.6,2.0045]
[1751637270303,1.97476,2531.1,2530.6,2.0045]
[1751637270505,0.79002,2530.7,2530.6,2.0045]
[1751637271207,0.79,2530.8,2530.7,0.78998]
[1751637271502,0.79002,2530.7,2530.6,2.79453]
[1751637271708,0.79002,2530.7,2530.6,1.46673]
[1751637272618,0.79002,2530.8,2530.7,0.78999]
[1751637273414,0.78996,2530.9,2530.8,0.78995]
[1751637274714,40.8,2531.3,2530.6,2.65181]
[1751637274911,3.9073,2531.4,2531.1,0.78987]
[1751637275116,3.2078,2531.7,2531.2,1.97466]
[1751637275317,0.78976,2531.6,2531.5,0.78974]
[1751637275515,0.78983,2531.3,2531.2,0.6423]
[1751637275911,1.97466,2531.3,2531.0,0.7899]
[1751637276223,0.78997,2531.0,2530.9,0.78994]
[1751637276819,0.79011,2530.5,2530.4,0.79008]
[1751637277020,0.79006,2530.7,2530.6,0.79003]
[1751637277323,0.79012,2530.5,2530.4,0.79009]